[Event "Turkish Cup 2024"]
[Site "Denizli"]
[Date "2024.07.31"]
[Round "2"]
[White "Yardimci, Can"]
[Black "Gunasti, Latife Yade"]
[Result "1-0"]
[ECO "B07"]
[WhiteElo "1930"]
[BlackElo "1704"]
[Annotator "ChessBase"]
[PlyCount "69"]
[EventDate "2024.08.01"]
[EventType "swiss"]
[EventCountry "TUR"]
[SourceTitle "playchess.com"]
[Source "ChessBase"]
[SourceQuality "1"]
[TimeControl "5400+30"]

1. e4 {[%emt 0:01:00]} d6 {[%emt 0:01:00]} 2. d4 {[%emt 0:00:30]} Nf6 {[%emt 0:00:30]} 3. Nc3 {[%emt 0:00:30]} e5 {[%emt 0:00:30]} 4. dxe5 {[%emt 0:01:30]} dxe5 {[%emt 0:00:30]} 5. Qxd8+ {[%emt 0:00:30]} Kxd8 {[%emt 0:00:00]} 6. Bc4 {[%emt 0:01:30]} Ke8 {[%emt 0:01:00]} 7. Nf3 {[%emt 0:05:30]} Bd6 {[%emt 0:03:30]} 8. Bg5 {[%emt 0:06:30]} Nbd7 {[%emt 0:02:30]} 9. O-O-O {[%emt 0:00:30]} a6 {[%emt 0:03:30]} 10. a4 {[%emt 0:02:30]} h6 {[%emt 0:01:30]} 11. Bd2 {[%emt 0:02:30]} Nc5 {[%emt 0:08:30]} 12. Rhe1 {[%emt 0:02:30]} Bd7 {[%emt 0:03:30]} 13. a5 {[%emt 0:02:30]} Bc6 {[%emt 0:03:30]} 14. Bd5 {[%emt 0:02:30]} Ke7 {[%emt 0:02:30]} 15. Bxc6 {[%emt 0:05:30]} bxc6 {[%emt 0:00:00]} 16. Nh4 {[%emt 0:01:30]} g6 {[%emt 0:01:00]} 17. f4 {[%emt 0:01:30]} Nfd7 {[%emt 0:07:30]} 18. Nf3 {[%emt 0:04:30]} Ne6 {[%emt 0:01:30]} 19. f5 {[%emt 0:01:30]} Nec5 {[%emt 0:03:30]} 20. g4 {[%emt 0:06:30]} Rab8 {[%emt 0:02:30]} 21. h4 {[%emt 0:01:30]} Rb7 {[%emt 0:03:30]} 22. b4 {[%emt 0:02:30]} Rhb8 {[%emt 0:03:30]} 23. bxc5 {[%emt 0:01:30]} Bxc5 {[%emt 0:02:30]} 24. Bxh6 {[%emt 0:03:30]} Ba3+ {[%emt 0:00:30]} 25. Kd2 {[%emt 0:00:30]} Bb4 {[%emt 0:00:30]} 26. Re3 {[%emt 0:02:30]} Rb5 {[%emt 0:01:30]} 27. fxg6 {[%emt 0:01:30]} fxg6 {[%emt 0:00:30]} 28. Ke2 {[%emt 0:01:30]} Rc5 {[%emt 0:00:30]} 29. Red3 {[%emt 0:02:30]} Nf8 {[%emt 0:01:30]} 30. Rb1 {[%emt 0:02:30]} Ne6 {[%emt 0:03:30]} 31. Bd2 {[%emt 0:02:30]} Rxa5 {[%emt 0:01:30]} 32. Rxb4 {[%emt 0:05:30]} Rxb4 {[%emt 0:01:30]} 33. Nd5+ {[%emt 0:00:30]} Kf7 {[%emt 0:01:30]} 34. Nxb4 {[%emt 0:01:30]} Rb5 {[%emt 0:00:30]} 35. Nxc6 {[%emt 0:00:00]} 1-0

[Event "Turkish Cup 2024"]
[Site "Denizli"]
[Date "2024.07.31"]
[Round "2"]
[White "Tirpan, Ceren"]
[Black "Unsal, Omer"]
[Result "1-0"]
[ECO "D35"]
[WhiteElo "1926"]
[BlackElo "1703"]
[Annotator "ChessBase"]
[PlyCount "73"]
[EventDate "2024.08.01"]
[EventType "swiss"]
[EventCountry "TUR"]
[SourceTitle "playchess.com"]
[Source "ChessBase"]
[SourceQuality "1"]
[TimeControl "5400+30"]

1. d4 {[%emt 0:01:00]} Nf6 {[%emt 0:01:00]} 2. c4 {[%emt 0:00:30]} e6 {[%emt 0:00:00]} 3. Nc3 {[%emt 0:00:00]} d5 {[%emt 0:00:00]} 4. cxd5 {[%emt 0:00:00]} exd5 {[%emt 0:00:00]} 5. Bg5 {[%emt 0:00:00]} Be7 {[%emt 0:01:00]} 6. e3 {[%emt 0:00:00]} h6 {[%emt 0:04:30]} 7. Bh4 {[%emt 0:04:30]} c6 {[%emt 0:04:30]} 8. Bd3 {[%emt 0:02:30]} Be6 {[%emt 0:01:30]} 9. Nge2 {[%emt 0:15:30]} Nbd7 {[%emt 0:11:30]} 10. Bxf6 {[%emt 0:06:30]} Nxf6 {[%emt 0:07:30]} 11. Nf4 {[%emt 0:00:30]} Bd7 {[%emt 0:09:30]} 12. Rc1 {[%emt 0:06:30]} Bd6 {[%emt 0:02:30]} 13. Nh5 {[%emt 0:09:30]} g6 {[%emt 0:06:30]} 14. Nxf6+ {[%emt 0:03:30]} Qxf6 {[%emt 0:00:30]} 15. Qf3 {[%emt 0:00:30]} Qh4 {[%emt 0:19:30]} 16. h3 {[%emt 0:16:30]} O-O {[%emt 0:10:57]} 17. g3 {[%emt 0:06:30]} Qe7 {[%emt 0:02:09]} 18. h4 {[%emt 0:00:30]} h5 {[%emt 0:01:17]} 19. O-O {[%emt 0:00:30]} Bg4 {[%emt 0:04:54]} 20. Qg2 {[%emt 0:00:30]} g5 {[%emt 0:00:17]} 21. hxg5 {[%emt 0:01:30]} Qxg5 {[%emt 0:00:23]} 22. e4 {[%emt 0:02:30]} Qd2 {[%emt 0:05:16]} 23. Bb1 {[%emt 0:05:19]} Qxd4 {[%emt 0:00:38]} 24. exd5 {[%emt 0:01:39]} cxd5 {[%emt 0:05:30]} 25. Rcd1 {[%emt 0:01:28]} Bxd1 {[%emt 0:00:58]} 26. Rxd1 {[%emt 0:00:07]} Qg7 {[%emt 0:00:38]} 27. Rxd5 {[%emt 0:03:29]} Be5 {[%emt 0:00:23]} 28. f4 {[%emt 0:03:54]} Bd4+ {[%emt 0:00:30]} 29. Kh2 {[%emt 0:00:00]} Bf6 {[%emt 0:00:30]} 30. Ne4 {[%emt 0:00:00]} Rfe8 {[%emt 0:00:29]} 31. Rxh5 {[%emt 0:04:14]} Rad8 {[%emt 0:00:10]} 32. Ng5 {[%emt 0:03:05]} Re1 {[%emt 0:00:45]} 33. Bc2 {[%emt 0:03:12]} Bxb2 {[%emt 0:00:37]} 34. Ne4 {[%emt 0:00:51]} Kf8 {[%emt 0:00:36]} 35. Qf2 {[%emt 0:00:28]} Bc3 {[%emt 0:00:38]} 36. Qc5+ {[%emt 0:00:22]} Ke8 {[%emt 0:00:44]} 37. Ba4+ {[%emt 0:00:08]} 1-0

[Event "Turkish Cup 2024"]
[Site "Denizli"]
[Date "2024.07.31"]
[Round "2"]
[White "Dirikolu, Deniz"]
[Black "Bulgurlu, Hakan"]
[Result "1-0"]
[ECO "B01"]
[WhiteElo "1911"]
[BlackElo "1714"]
[Annotator "ChessBase"]
[PlyCount "51"]
[EventDate "2024.08.01"]
[EventType "swiss"]
[EventCountry "TUR"]
[SourceTitle "playchess.com"]
[Source "ChessBase"]
[SourceQuality "1"]
[TimeControl "5400+30"]

1. e4 {[%emt 0:01:00]} d5 {[%emt 0:01:00]} 2. exd5 {[%emt 0:00:00]} Qxd5 {[%emt 0:00:30]} 3. Nc3 {[%emt 0:00:00]} Qd6 {[%emt 0:00:00]} 4. d4 {[%emt 0:00:30]} Nf6 {[%emt 0:00:00]} 5. Nf3 {[%emt 0:01:30]} c6 {[%emt 0:00:30]} 6. Ne5 {[%emt 0:01:30]} Bf5 {[%emt 0:02:30]} 7. Bc4 {[%emt 0:07:30]} e6 {[%emt 0:00:30]} 8. g4 {[%emt 0:15:30]} Bg6 {[%emt 0:06:30]} 9. h4 {[%emt 0:04:30]} Nbd7 {[%emt 0:05:30]} 10. Nxd7 {[%emt 0:00:30]} Kxd7 {[%emt 0:00:30]} 11. h5 {[%emt 0:02:30]} Be4 {[%emt 0:00:30]} 12. Nxe4 {[%emt 0:00:00]} Nxe4 {[%emt 0:00:30]} 13. c3 {[%emt 0:00:00]} h6 {[%emt 0:13:30]} 14. Qf3 {[%emt 0:01:30]} Nf6 {[%emt 0:00:30]} 15. Bf4 {[%emt 0:00:30]} Qe7 {[%emt 0:00:00]} 16. O-O {[%emt 0:01:30]} Rg8 {[%emt 0:04:00]} 17. Be5 {[%emt 0:08:30]} Nh7 {[%emt 0:11:30]} 18. b4 {[%emt 0:01:30]} g6 {[%emt 0:05:30]} 19. b5 {[%emt 0:00:00]} gxh5 {[%emt 0:00:30]} 20. bxc6+ {[%emt 0:00:00]} bxc6 {[%emt 0:00:30]} 21. Rfb1 {[%emt 0:00:00]} Rxg4+ {[%emt 0:00:00]} 22. Kf1 {[%emt 0:00:00]} Kd8 {[%emt 0:08:00]} 23. Qxc6 {[%emt 0:00:00]} Rc8 {[%emt 0:00:30]} 24. Qxc8+ {[%emt 0:00:00]} Kxc8 {[%emt 0:00:00]} 25. Rb8+ {[%emt 0:00:30]} Kd7 {[%emt 0:00:00]} 26. Bb5# {[%emt 0:00:00]} 1-0

[Event "Turkish Cup 2024"]
[Site "Denizli"]
[Date "2024.07.31"]
[Round "2"]
[White "Kilic, Ihsan"]
[Black "Gunaydin, Mehmet Emir"]
[Result "1/2-1/2"]
[ECO "A25"]
[WhiteElo "1911"]
[BlackElo "1634"]
[Annotator "ChessBase"]
[PlyCount "76"]
[EventDate "2024.08.01"]
[EventType "swiss"]
[EventCountry "TUR"]
[SourceTitle "playchess.com"]
[Source "ChessBase"]
[SourceQuality "1"]
[TimeControl "5400+30"]

1. c4 {[%emt 0:03:00]} e5 {[%emt 0:01:00]} 2. Nc3 {[%emt 0:00:00]} Nc6 {[%emt 0:00:00]} 3. g3 {[%emt 0:00:00]} Nf6 {[%emt 0:00:00]} 4. Bg2 {[%emt 0:01:30]} Bc5 {[%emt 0:00:30]} 5. e3 {[%emt 0:00:30]} a6 {[%emt 0:02:30]} 6. Nge2 {[%emt 0:02:30]} d6 {[%emt 0:01:30]} 7. d4 {[%emt 0:00:30]} Ba7 {[%emt 0:02:30]} 8. h3 {[%emt 0:05:30]} h6 {[%emt 0:03:30]} 9. a3 {[%emt 0:02:30]} exd4 {[%emt 0:04:30]} 10. exd4 {[%emt 0:01:30]} O-O {[%emt 0:00:30]} 11. O-O {[%emt 0:00:30]} Re8 {[%emt 0:02:30]} 12. b4 {[%emt 0:01:30]} Rb8 {[%emt 0:11:30]} 13. Be3 {[%emt 0:02:30]} Ne7 {[%emt 0:13:30]} 14. g4 {[%emt 0:06:30]} Nh7 {[%emt 0:05:30]} 15. Qd2 {[%emt 0:01:30]} Ng6 {[%emt 0:06:30]} 16. Ng3 {[%emt 0:04:30]} Nh4 {[%emt 0:04:30]} 17. Rae1 {[%emt 0:03:30]} Bd7 {[%emt 0:05:30]} 18. Bh1 {[%emt 0:03:30]} Qf6 {[%emt 0:07:30]} 19. Nd5 {[%emt 0:08:30]} Nf3+ {[%emt 0:02:30]} 20. Bxf3 {[%emt 0:01:30]} Qxf3 {[%emt 0:00:30]} 21. Nxc7 {[%emt 0:07:30]} Rec8 {[%emt 0:03:30]} 22. Nd5 {[%emt 0:09:30]} Rxc4 {[%emt 0:00:30]} 23. Ne7+ {[%emt 0:00:30]} Kh8 {[%emt 0:01:30]} 24. d5 {[%emt 0:02:30]} Bxe3 {[%emt 0:01:26]} 25. Rxe3 {[%emt 0:01:30]} Ng5 {[%emt 0:00:25]} 26. Kh2 {[%emt 0:03:30]} Qf4 {[%emt 0:11:49]} 27. Kg2 {[%emt 0:00:30]} Nxh3 {[%emt 0:00:39]} 28. f3 {[%emt 0:07:30]} Rc2 {[%emt 0:03:10]} 29. Qxc2 {[%emt 0:00:47]} Qxe3 {[%emt 0:00:08]} 30. Ne4 {[%emt 0:06:02]} Bb5 {[%emt 0:01:55]} 31. Rh1 {[%emt 0:03:07]} Nf4+ {[%emt 0:00:10]} 32. Kg3 {[%emt 0:00:42]} Ne2+ {[%emt 0:01:21]} 33. Kg2 {[%emt 0:00:38]} Bd3 {[%emt 0:02:21]} 34. Qc7 {[%emt 0:03:06]} Nf4+ {[%emt 0:00:47]} 35. Kg3 {[%emt 0:00:20]} Ne2+ {[%emt 0:00:28]} 36. Kg2 {[%emt 0:01:28]} Nf4+ {[%emt 0:00:47]} 37. Kg3 {[%emt 0:00:51]} Ne2+ {[%emt 0:00:08]} 38. Kg2 {[%emt 0:02:09]} Nf4+ {[%emt 0:00:35]} 1/2-1/2

[Event "Turkish Cup 2024"]
[Site "Denizli"]
[Date "2024.07.31"]
[Round "2"]
[White "Demirci, Fatih"]
[Black "Yilmaz, Enes Mustafa"]
[Result "1-0"]
[ECO "B13"]
[WhiteElo "1885"]
[BlackElo "1766"]
[Annotator "NA"]
[PlyCount "53"]
[EventDate "2024.08.01"]
[EventType "swiss"]
[EventCountry "TUR"]
[SourceTitle "playchess.com"]
[Source "ChessBase"]
[SourceQuality "1"]
[TimeControl "5400+30"]

1. e4 {[%emt 0:01:00]} c6 {[%emt 0:01:00]} 2. d4 {[%emt 0:01:30]} d5 {[%emt 0:00:00]} 3. exd5 {[%emt 0:01:30]} cxd5 {[%emt 0:00:00]} 4. c3 {[%emt 0:00:30]} Bf5 {[%emt 0:00:30]} 5. Qb3 {[%emt 0:00:30]} Qd7 {[%emt 0:06:30]} 6. Nf3 {[%emt 0:02:30]} f6 {[%emt 0:00:00]} 7. Bf4 {[%emt 0:05:30]} a6 {[%emt 0:00:00]} 8. Be2 {[%emt 0:07:30]} Nc6 {[%emt 0:05:30]} 9. O-O {[%emt 0:03:30]} e6 {[%emt 0:02:30]} 10. Re1 {[%emt 0:02:30]} Nge7 {[%emt 0:11:30]} 11. Nbd2 {[%emt 0:11:30]} g5 {[%emt 0:07:30]} 12. Bg3 {[%emt 0:03:30]} Bg7 {[%emt 0:04:30]} 13. h4 {[%emt 0:00:30]} h6 {[%emt 0:01:30]} 14. Nf1 {[%emt 0:03:30]} O-O {[%emt 0:03:30]} 15. Ne3 {[%emt 0:00:30]} Kh8 {[%emt 0:02:30]} 16. Rad1 {[%emt 0:07:30]} Rac8 {[%emt 0:11:30]} 17. Qa3 {[%emt 0:00:30]} Rf7 {[%emt 0:03:30]} 18. Bd6 {[%emt 0:03:30]} Rd8 {[%emt 0:02:30]} 19. Bxe7 {[%emt 0:02:30]} Nxe7 {[%emt 0:00:30]} 20. Nxf5 {[%emt 0:00:30]} Nxf5 {[%emt 0:00:30]} 21. h5 {[%emt 0:03:30]} Qc7 {[%emt 0:03:30]} 22. Bd3 {[%emt 0:02:30]} Bf8 {[%emt 0:01:30]} 23. Qb3 {[%emt 0:00:30]} Ng7 {[%emt 0:02:30]} 24. Bg6 {[%emt 0:00:30]} Rfd7 {[%emt 0:00:30]} 25. Nh2 {[%emt 0:02:30]} Qf4 {[%emt 0:00:30]} 26. Re3 {[%emt 0:00:30]} Bd6 {[%emt 0:01:30]} 27. g3 {[%emt 0:00:30]} 1-0

[Event "Turkish Cup 2024"]
[Site "Denizli"]
[Date "2024.07.31"]
[Round "2"]
[White "Ceylan, Arda"]
[Black "Bulgurlu, Okan"]
[Result "0-1"]
[ECO "D17"]
[WhiteElo "1836"]
[BlackElo "1964"]
[Annotator "RC"]
[PlyCount "112"]
[EventDate "2024.08.01"]
[EventType "swiss"]
[EventCountry "TUR"]
[SourceTitle "playchess.com"]
[Source "ChessBase"]
[SourceQuality "1"]
[TimeControl "5400+30"]

1. d4 {[%emt 0:01:00]} d5 {[%emt 0:01:00]} 2. c4 {[%emt 0:00:00]} c6 {[%emt 0:00:30]} 3. Nc3 {[%emt 0:00:00]} Nf6 {[%emt 0:00:00]} 4. Nf3 {[%emt 0:00:30]} dxc4 {[%emt 0:00:00]} 5. a4 {[%emt 0:00:00]} Bf5 {[%emt 0:00:00]} 6. Ne5 {[%emt 0:00:00]} Nbd7 {[%emt 0:00:00]} 7. Nxc4 {[%emt 0:00:30]} Qc7 {[%emt 0:00:00]} 8. g3 {[%emt 0:00:30]} e5 {[%emt 0:00:00]} 9. dxe5 {[%emt 0:00:30]} Nxe5 {[%emt 0:00:00]} 10. Bf4 {[%emt 0:00:00]} Nfd7 {[%emt 0:00:00]} 11. Bg2 {[%emt 0:00:00]} f6 {[%emt 0:00:30]} 12. O-O {[%emt 0:00:30]} Rd8 {[%emt 0:00:30]} 13. Qc1 {[%emt 0:06:30]} g5 {[%emt 0:08:30]} 14. Nxe5 {[%emt 0:02:30]} gxf4 {[%emt 0:13:30]} 15. Nf3 {[%emt 0:34:30]} fxg3 {[%emt 0:16:30]} 16. hxg3 {[%emt 0:01:30]} Nc5 {[%emt 0:18:30]} 17. Nh4 {[%emt 0:19:30]} Be6 {[%emt 0:00:30]} 18. Ne4 {[%emt 0:10:30]} Nxe4 {[%emt 0:03:30]} 19. Bxe4 {[%emt 0:00:00]} Qe5 {[%emt 0:00:00]} 20. Bg2 {[%emt 0:04:06]} Bc5 {[%emt 0:09:00]} 21. Qh6 {[%emt 0:11:32]} Qg5 {[%emt 0:06:30]} 22. Qxg5 {[%emt 0:00:19]} fxg5 {[%emt 0:00:00]} 23. Nf3 {[%emt 0:00:17]} h6 {[%emt 0:03:00]} 24. Ne5 {[%emt 0:03:21]} Rd2 {[%emt 0:00:35]} 25. Nd3 {[%emt 0:00:48]} Bd4 {[%emt 0:00:25]} 26. e3 {[%emt 0:02:25]} Bxe3 {[%emt 0:05:49]} 27. fxe3 {[%emt 0:02:01]} Rxd3 {[%emt 0:00:35]} 28. a5 {[%emt 0:00:20]} a6 {[%emt 0:00:00]} 29. Ra3 {[%emt 0:00:45]} Rd2 {[%emt 0:00:58]} 30. Rf2 {[%emt 0:00:57]} Rxf2 {[%emt 0:00:30]} 31. Kxf2 {[%emt 0:00:30]} Rf8+ {[%emt 0:00:00]} 32. Ke2 {[%emt 0:00:00]} Rf5 {[%emt 0:01:11]} 33. Bh3 {[%emt 0:00:49]} Bc4+ {[%emt 0:00:06]} 34. Kd2 {[%emt 0:00:06]} Rf2+ {[%emt 0:04:07]} 35. Kc3 {[%emt 0:00:10]} Bb5 {[%emt 0:00:47]} 36. e4 {[%emt 0:00:39]} Ke7 {[%emt 0:03:49]} 37. Bf5 {[%emt 0:00:50]} c5 {[%emt 0:00:59]} 38. g4 {[%emt 0:00:33]} Rf3+ {[%emt 0:00:41]} 39. Kc2 {[%emt 0:00:44]} Rxa3 {[%emt 0:00:03]} 40. bxa3 {[%emt 0:00:00]} Kd6 {[%emt 0:04:33]} 41. Kc3 {[%emt 0:00:08]} Ke5 {[%emt 0:00:35]} 42. Bc8 {[%emt 0:00:34]} Kxe4 {[%emt 0:01:31]} 43. Bxb7+ {[%emt 0:00:17]} Kf4 {[%emt 0:00:18]} 44. Bc8 {[%emt 0:00:17]} Kg3 {[%emt 0:01:47]} 45. Kd2 {[%emt 0:00:11]} Kh4 {[%emt 0:00:19]} 46. Ke3 {[%emt 0:00:20]} h5 {[%emt 0:00:09]} 47. gxh5 {[%emt 0:00:45]} Kxh5 {[%emt 0:00:06]} 48. Kf3 {[%emt 0:01:25]} Kh4 {[%emt 0:00:04]} 49. a4 {[%emt 0:00:37]} Bc4 {[%emt 0:01:33]} 50. Bf5 {[%emt 0:00:27]} Bd5+ {[%emt 0:00:22]} 51. Kf2 {[%emt 0:00:37]} Bb7 {[%emt 0:00:29]} 52. Bd3 {[%emt 0:00:33]} g4 {[%emt 0:00:03]} 53. Be2 {[%emt 0:00:52]} g3+ {[%emt 0:00:08]} 54. Kg1 {[%emt 0:00:16]} Kg5 {[%emt 0:00:04]} 55. Kf1 {[%emt 0:00:28]} Kf4 {[%emt 0:00:09]} 56. Bb5 {[%emt 0:00:25]} Ke3 {[%emt 0:00:21]} 0-1

[Event "Turkish Cup 2024"]
[Site "Denizli"]
[Date "2024.07.31"]
[Round "2"]
[White "Karapinar, Yalin"]
[Black "Uysal, Ugur"]
[Result "1/2-1/2"]
[ECO "E91"]
[WhiteElo "1785"]
[BlackElo "2114"]
[Annotator "RC"]
[PlyCount "112"]
[EventDate "2024.08.01"]
[EventType "swiss"]
[EventCountry "TUR"]
[SourceTitle "playchess.com"]
[Source "ChessBase"]
[SourceQuality "1"]
[TimeControl "5400+30"]

1. d4 {[%emt 0:01:00]} Nf6 {[%emt 0:01:00]} 2. c4 {[%emt 0:00:30]} g6 {[%emt 0:00:30]} 3. Nc3 {[%emt 0:00:30]} Bg7 {[%emt 0:00:30]} 4. e4 {[%emt 0:00:00]} d6 {[%emt 0:00:00]} 5. Be2 {[%emt 0:00:00]} O-O {[%emt 0:00:00]} 6. Nf3 {[%emt 0:00:00]} Bg4 {[%emt 0:00:00]} 7. Be3 {[%emt 0:01:00]} Nfd7 {[%emt 0:00:00]} 8. O-O {[%emt 0:00:30]} c5 {[%emt 0:00:00]} 9. Ne1 {[%emt 0:05:30]} Bxe2 {[%emt 0:01:00]} 10. Nxe2 {[%emt 0:00:30]} Nc6 {[%emt 0:02:30]} 11. Rc1 {[%emt 0:02:30]} Qb6 {[%emt 0:04:30]} 12. d5 {[%emt 0:13:30]} Nd4 {[%emt 0:00:30]} 13. Bxd4 {[%emt 0:00:30]} cxd4 {[%emt 0:00:30]} 14. Nd3 {[%emt 0:00:30]} e5 {[%emt 0:10:30]} 15. b4 {[%emt 0:19:30]} f5 {[%emt 0:03:30]} 16. Ng3 {[%emt 0:12:30]} Bh6 {[%emt 0:17:30]} 17. Rc2 {[%emt 0:01:30]} f4 {[%emt 0:01:30]} 18. Nh1 {[%emt 0:00:30]} f3 {[%emt 0:00:30]} 19. gxf3 {[%emt 0:00:30]} Qd8 {[%emt 0:01:30]} 20. Ng3 {[%emt 0:05:30]} a5 {[%emt 0:02:30]} 21. a3 {[%emt 0:02:30]} axb4 {[%emt 0:01:30]} 22. axb4 {[%emt 0:00:00]} Qh4 {[%emt 0:08:30]} 23. Kh1 {[%emt 0:03:00]} Qh3 {[%emt 0:04:30]} 24. Rg1 {[%emt 0:03:30]} Ra3 {[%emt 0:09:30]} 25. c5 {[%emt 0:00:30]} Bf4 {[%emt 0:02:30]} 26. c6 {[%emt 0:03:30]} bxc6 {[%emt 0:00:30]} 27. dxc6 {[%emt 0:00:00]} Nb6 {[%emt 0:00:00]} 28. c7 {[%emt 0:09:09]} Rfa8 {[%emt 0:09:00]} 29. Rc6 {[%emt 0:05:26]} Bxg3 {[%emt 0:00:30]} 30. Rxg3 {[%emt 0:02:48]} Qd7 {[%emt 0:00:00]} 31. b5 {[%emt 0:02:42]} Nc8 {[%emt 0:05:15]} 32. Qc2 {[%emt 0:02:14]} Na7 {[%emt 0:00:40]} 33. Qc4+ {[%emt 0:02:21]} Kg7 {[%emt 0:00:15]} 34. Rb6 {[%emt 0:02:03]} Rc8 {[%emt 0:01:16]} 35. Rb7 {[%emt 0:00:33]} Nxb5 {[%emt 0:01:15]} 36. Nxe5 {[%emt 0:00:58]} dxe5 {[%emt 0:01:08]} 37. Qxb5 {[%emt 0:00:05]} Qxb5 {[%emt 0:01:12]} 38. Rxb5 {[%emt 0:00:04]} Rxc7 {[%emt 0:00:31]} 39. f4 {[%emt 0:01:10]} Rxg3 {[%emt 0:01:31]} 40. hxg3 {[%emt 0:00:22]} Rd7 {[%emt 0:00:26]} 41. fxe5 {[%emt 0:00:32]} d3 {[%emt 0:00:43]} 42. Rb1 {[%emt 0:00:06]} g5 {[%emt 0:00:06]} 43. Rd1 {[%emt 0:00:24]} h5 {[%emt 0:03:54]} 44. Kg2 {[%emt 0:00:11]} Kf7 {[%emt 0:00:13]} 45. f4 {[%emt 0:00:36]} Ke6 {[%emt 0:01:19]} 46. Rd2 {[%emt 0:01:14]} h4 {[%emt 0:03:33]} 47. fxg5 {[%emt 0:00:25]} h3+ {[%emt 0:05:25]} 48. Kxh3 {[%emt 0:00:14]} Kxe5 {[%emt 0:00:00]} 49. Kg4 {[%emt 0:00:50]} Kxe4 {[%emt 0:00:11]} 50. g6 {[%emt 0:00:00]} Ke3 {[%emt 0:00:39]} 51. Rh2 {[%emt 0:01:01]} d2 {[%emt 0:01:13]} 52. Rxd2 {[%emt 0:00:30]} Kxd2 {[%emt 0:00:39]} 53. Kf5 {[%emt 0:00:30]} Ke3 {[%emt 0:00:30]} 54. g4 {[%emt 0:00:30]} Kd4 {[%emt 0:00:30]} 55. Kf6 {[%emt 0:00:30]} Rd6+ {[%emt 0:00:30]} 56. Kg7 {[%emt 0:00:30]} Ke5 {[%emt 0:00:30]} 1/2-1/2

[Event "Turkish Cup 2024"]
[Site "Denizli"]
[Date "2024.07.31"]
[Round "2"]
[White "Abak, Tuana"]
[Black "Tezcan, Alper"]
[Result "1-0"]
[ECO "C00"]
[WhiteElo "1784"]
[BlackElo "1989"]
[Annotator "RC"]
[PlyCount "65"]
[EventDate "2024.08.01"]
[EventType "swiss"]
[EventCountry "TUR"]
[SourceTitle "playchess.com"]
[Source "ChessBase"]
[SourceQuality "1"]
[TimeControl "5400+30"]

1. e4 {[%emt 0:01:00]} e6 {[%emt 0:05:00]} 2. d3 {[%emt 0:00:30]} d5 {[%emt 0:00:00]} 3. Nd2 {[%emt 0:00:00]} g6 {[%emt 0:00:00]} 4. Ngf3 {[%emt 0:00:00]} Bg7 {[%emt 0:00:30]} 5. g3 {[%emt 0:00:00]} b6 {[%emt 0:00:00]} 6. Bg2 {[%emt 0:00:00]} dxe4 {[%emt 0:00:00]} 7. Nxe4 {[%emt 0:00:30]} Bb7 {[%emt 0:09:30]} 8. O-O {[%emt 0:00:30]} Nd7 {[%emt 0:08:30]} 9. Nfg5 {[%emt 0:08:30]} h6 {[%emt 0:05:30]} 10. Nf3 {[%emt 0:05:30]} Ngf6 {[%emt 0:01:30]} 11. Re1 {[%emt 0:02:30]} O-O {[%emt 0:01:30]} 12. Bd2 {[%emt 0:01:30]} Qe7 {[%emt 0:06:30]} 13. Bc3 {[%emt 0:01:30]} Rfd8 {[%emt 0:01:30]} 14. Qe2 {[%emt 0:02:30]} Nxe4 {[%emt 0:02:30]} 15. dxe4 {[%emt 0:06:30]} Bxc3 {[%emt 0:01:30]} 16. bxc3 {[%emt 0:00:30]} e5 {[%emt 0:03:30]} 17. h4 {[%emt 0:01:30]} h5 {[%emt 0:23:30]} 18. Ng5 {[%emt 0:02:30]} Nc5 {[%emt 0:01:30]} 19. g4 {[%emt 0:00:30]} hxg4 {[%emt 0:04:30]} 20. Qxg4 {[%emt 0:00:00]} Rd2 {[%emt 0:05:30]} 21. Re3 {[%emt 0:02:00]} Rxc2 {[%emt 0:08:26]} 22. Bf1 {[%emt 0:02:30]} f6 {[%emt 0:05:30]} 23. Bc4+ {[%emt 0:04:30]} Kg7 {[%emt 0:00:01]} 24. Ne6+ {[%emt 0:00:30]} Nxe6 {[%emt 0:00:06]} 25. Bxe6 {[%emt 0:00:00]} Rd8 {[%emt 0:04:28]} 26. Bf5 {[%emt 0:01:00]} Qe8 {[%emt 0:00:45]} 27. Rg3 {[%emt 0:01:30]} Bc8 {[%emt 0:00:28]} 28. Bxc8 {[%emt 0:01:30]} Rxc8 {[%emt 0:00:30]} 29. Rd1 {[%emt 0:00:30]} Rxa2 {[%emt 0:00:30]} 30. h5 {[%emt 0:00:30]} g5 {[%emt 0:00:30]} 31. Rd7+ {[%emt 0:00:30]} Kh6 {[%emt 0:00:30]} 32. Qf5 {[%emt 0:00:30]} Qh8 {[%emt 0:00:30]} 33. Qg6# {[%emt 0:00:00]} 1-0